[Event "Titled Tuesday Blitz May 9 Early 2023"]
[White "Smith, Shreyas"]
[Black "Melikhov, Evgeny V."]
[WhiteFideId "7400713"]
[BlackFideId "4122046"]
[WhiteElo "2151"]
[BlackElo "2158"]
[Result "1-0"]
[Round "09"]
[TimeControl "180+2"]
[Date "2023.05.09"]
[WhiteClock "0:00:05"]
[BlackClock "0:00:00"]

1. e4 {[%clk 0:02:44]}  c5 {[%clk 0:02:58]} 2. Nf3 {[%clk 0:02:44]}  d6 {[%clk 0:02:58]} 3. Bb5+ {[%clk 0:02:43]}  Nd7 {[%clk 0:02:57]} 4. a4 {[%clk 0:02:41]}  a6 {[%clk 0:02:53]} 5. Be2 {[%clk 0:02:41]}  b6 {[%clk 0:02:50]} 6. Nc3 {[%clk 0:02:35]}  Bb7 {[%clk 0:02:50]} 7. d4 {[%clk 0:02:35]}  cxd4 {[%clk 0:02:49]} 8. Qxd4 {[%clk 0:02:36]}  e5 {[%clk 0:02:45]} 9. Qe3 {[%clk 0:02:32]}  Rc8 {[%clk 0:02:41]} 10. O-O {[%clk 0:02:30]}  Ngf6 {[%clk 0:02:36]} 11. Rd1 {[%clk 0:02:28]}  Be7 {[%clk 0:02:13]} 12. Nd2 {[%clk 0:02:27]}  O-O {[%clk 0:01:57]} 13. h3 {[%clk 0:01:39]}  h6 {[%clk 0:01:50]} 14. Bd3 {[%clk 0:01:23]}  d5 {[%clk 0:01:34]} 15. exd5 {[%clk 0:01:23]}  Nxd5 {[%clk 0:01:34]} 16. Nxd5 {[%clk 0:01:23]}  Bxd5 {[%clk 0:01:34]} 17. c3 {[%clk 0:01:18]}  Bc5 {[%clk 0:01:27]} 18. Qe2 {[%clk 0:01:17]}  a5 {[%clk 0:01:26]} 19. Ba6 {[%clk 0:01:14]}  Qg5 {[%clk 0:00:58]} 20. Ne4 {[%clk 0:01:07]}  Bxe4 {[%clk 0:00:51]} 21. Bxg5 {[%clk 0:01:06]}  hxg5 {[%clk 0:00:48]} 22. Bxc8 {[%clk 0:01:03]}  Nf6 {[%clk 0:00:45]} 23. Ba6 {[%clk 0:01:01]}  Re8 {[%clk 0:00:36]} 24. Bb5 {[%clk 0:00:56]}  Re7 {[%clk 0:00:35]} 25. Rd8+ {[%clk 0:00:55]}  Kh7 {[%clk 0:00:35]} 26. Bd3 {[%clk 0:00:54]}  Bxd3 {[%clk 0:00:33]} 27. Qxd3+ {[%clk 0:00:55]}  e4 {[%clk 0:00:34]} 28. Qg3 {[%clk 0:00:48]}  e3 {[%clk 0:00:28]} 29. fxe3 {[%clk 0:00:44]}  Rxe3 {[%clk 0:00:27]} 30. Qxe3 {[%clk 0:00:31]}  Bxe3+ {[%clk 0:00:27]} 31. Kh1 {[%clk 0:00:30]}  g4 {[%clk 0:00:25]} 32. Rf1 {[%clk 0:00:21]}  gxh3 {[%clk 0:00:22]} 33. gxh3 {[%clk 0:00:17]}  Kg6 {[%clk 0:00:22]} 34. Rxf6+ {[%clk 0:00:16]}  Kxf6 {[%clk 0:00:19]} 35. Rd6+ {[%clk 0:00:17]}  Ke5 {[%clk 0:00:17]} 36. Rd7 {[%clk 0:00:16]}  Ke6 {[%clk 0:00:18]} 37. Rd8 {[%clk 0:00:15]}  Ke7 {[%clk 0:00:16]} 38. Rb8 {[%clk 0:00:15]}  g5 {[%clk 0:00:15]} 39. Kg2 {[%clk 0:00:13]}  f5 {[%clk 0:00:13]} 40. Kf3 {[%clk 0:00:13]}  Bc1 {[%clk 0:00:13]} 41. Rxb6 {[%clk 0:00:12]}  Kd7 {[%clk 0:00:10]} 42. b3 {[%clk 0:00:12]}  Bd2 {[%clk 0:00:09]} 43. c4 {[%clk 0:00:10]}  Ke7 {[%clk 0:00:07]} 44. Rb5 {[%clk 0:00:10]}  Ke6 {[%clk 0:00:07]} 45. Rd5 {[%clk 0:00:08]}  Bc3 {[%clk 0:00:05]} 46. Ke3 {[%clk 0:00:05]}  g4 {[%clk 0:00:04]} 47. hxg4 {[%clk 0:00:04]}  fxg4 {[%clk 0:00:00]} 48. Kf4 {[%clk 0:00:05]} 1-0


[Site "https://www.chess.com"]

[Event "Titled Tuesday Blitz May 9 Early 2023"]
[White "Srdanovic, Jovana"]
[Black "Mohammed, Zozek Salah Mohammed"]
[WhiteFideId "954810"]
[BlackFideId "4803361"]
[WhiteElo "2169"]
[BlackElo "2211"]
[Result "0-1"]
[Round "09"]
[TimeControl "180+2"]
[Date "2023.05.09"]
[WhiteClock "0:00:12"]
[BlackClock "0:02:02"]

1. d4 {[%clk 0:02:57]}  d5 {[%clk 0:02:52]} 2. c4 {[%clk 0:02:56]}  c6 {[%clk 0:02:53]} 3. Nf3 {[%clk 0:02:56]}  Nf6 {[%clk 0:02:53]} 4. Nc3 {[%clk 0:02:56]}  e6 {[%clk 0:02:54]} 5. Bg5 {[%clk 0:02:55]}  Nbd7 {[%clk 0:02:55]} 6. e3 {[%clk 0:02:55]}  h6 {[%clk 0:02:55]} 7. Bxf6 {[%clk 0:02:53]}  Nxf6 {[%clk 0:02:54]} 8. Bd3 {[%clk 0:02:48]}  dxc4 {[%clk 0:02:54]} 9. Bxc4 {[%clk 0:02:49]}  b5 {[%clk 0:02:54]} 10. Bd3 {[%clk 0:02:49]}  Bb7 {[%clk 0:02:54]} 11. O-O {[%clk 0:02:48]}  a6 {[%clk 0:02:54]} 12. Rc1 {[%clk 0:02:48]}  Rc8 {[%clk 0:02:50]} 13. Ne4 {[%clk 0:02:42]}  Nxe4 {[%clk 0:02:48]} 14. Bxe4 {[%clk 0:02:43]}  Bd6 {[%clk 0:02:48]} 15. a4 {[%clk 0:02:28]}  Qe7 {[%clk 0:02:45]} 16. axb5 {[%clk 0:02:24]}  cxb5 {[%clk 0:02:44]} 17. Rxc8+ {[%clk 0:02:20]}  Bxc8 {[%clk 0:02:43]} 18. Bc6+ {[%clk 0:02:09]}  Bd7 {[%clk 0:02:36]} 19. Bxd7+ {[%clk 0:01:28]}  Qxd7 {[%clk 0:02:37]} 20. Qd3 {[%clk 0:01:28]}  O-O {[%clk 0:02:36]} 21. Nd2 {[%clk 0:01:20]}  Rc8 {[%clk 0:02:35]} 22. Ne4 {[%clk 0:01:19]}  Be7 {[%clk 0:02:33]} 23. h3 {[%clk 0:01:11]}  a5 {[%clk 0:02:33]} 24. Ra1 {[%clk 0:01:06]}  a4 {[%clk 0:02:33]} 25. Nc3 {[%clk 0:00:59]}  Rc4 {[%clk 0:02:29]} 26. d5 {[%clk 0:00:40]}  Bf6 {[%clk 0:02:17]} 27. Rd1 {[%clk 0:00:20]}  Bxc3 {[%clk 0:02:15]} 28. bxc3 {[%clk 0:00:21]}  a3 {[%clk 0:02:05]} 29. dxe6 {[%clk 0:00:19]}  Qxd3 {[%clk 0:02:05]} 30. exf7+ {[%clk 0:00:19]}  Kxf7 {[%clk 0:02:05]} 31. Rxd3 {[%clk 0:00:19]}  a2 {[%clk 0:02:03]} 32. Rd7+ {[%clk 0:00:20]}  Ke6 {[%clk 0:02:02]} 33. Ra7 {[%clk 0:00:12]}  Ra4 {[%clk 0:02:02]} 0-1


[Site "https://www.chess.com"]

[Event "Titled Tuesday Blitz May 9 Early 2023"]
[White "Tarnowska, Aleksandra"]
[Black "Hoffmann, Asa"]
[WhiteFideId "1180967"]
[BlackFideId "2001470"]
[WhiteElo "1776"]
[BlackElo "2117"]
[Result "0-1"]
[Round "09"]
[TimeControl "180+2"]
[Date "2023.05.09"]
[WhiteClock "0:00:00"]
[BlackClock "0:01:03"]

1. e4 {[%clk 0:03:00]}  d6 {[%clk 0:02:56]} 2. d4 {[%clk 0:03:00]}  Nf6 {[%clk 0:02:55]} 3. Nc3 {[%clk 0:02:59]}  c6 {[%clk 0:02:55]} 4. Be3 {[%clk 0:02:58]}  Ng4 {[%clk 0:02:54]} 5. Qd2 {[%clk 0:02:56]}  Nxe3 {[%clk 0:02:54]} 6. fxe3 {[%clk 0:02:56]}  g6 {[%clk 0:02:53]} 7. O-O-O {[%clk 0:02:56]}  Bh6 {[%clk 0:02:52]} 8. Bc4 {[%clk 0:02:52]}  e6 {[%clk 0:02:43]} 9. h4 {[%clk 0:02:39]}  a5 {[%clk 0:02:39]} 10. g4 {[%clk 0:02:33]}  b5 {[%clk 0:02:38]} 11. Bd3 {[%clk 0:02:24]}  a4 {[%clk 0:02:37]} 12. Nce2 {[%clk 0:02:09]}  Nd7 {[%clk 0:02:30]} 13. g5 {[%clk 0:01:35]}  Bg7 {[%clk 0:02:29]} 14. Nf3 {[%clk 0:01:34]}  Qa5 {[%clk 0:02:28]} 15. h5 {[%clk 0:01:16]}  Qxd2+ {[%clk 0:02:25]} 16. Rxd2 {[%clk 0:01:14]}  Bb7 {[%clk 0:02:21]} 17. hxg6 {[%clk 0:01:11]}  hxg6 {[%clk 0:02:17]} 18. Rxh8+ {[%clk 0:01:10]}  Bxh8 {[%clk 0:02:17]} 19. Nf4 {[%clk 0:01:09]}  Ke7 {[%clk 0:02:16]} 20. Rh2 {[%clk 0:01:09]}  Bg7 {[%clk 0:02:15]} 21. Rh7 {[%clk 0:01:09]}  Rg8 {[%clk 0:02:14]} 22. Nh2 {[%clk 0:00:45]}  e5 {[%clk 0:02:12]} 23. Ne2 {[%clk 0:00:42]}  Nf8 {[%clk 0:02:05]} 24. Rh3 {[%clk 0:00:34]}  Ne6 {[%clk 0:02:04]} 25. c3 {[%clk 0:00:32]}  Nxg5 {[%clk 0:02:02]} 26. Rg3 {[%clk 0:00:31]}  Ne6 {[%clk 0:02:01]} 27. d5 {[%clk 0:00:19]}  cxd5 {[%clk 0:01:58]} 28. exd5 {[%clk 0:00:20]}  Nc5 {[%clk 0:01:58]} 29. Bxb5 {[%clk 0:00:20]}  Bxd5 {[%clk 0:01:57]} 30. c4 {[%clk 0:00:18]}  Be6 {[%clk 0:01:56]} 31. Nc3 {[%clk 0:00:18]}  a3 {[%clk 0:01:53]} 32. b4 {[%clk 0:00:18]}  Nd7 {[%clk 0:01:49]} 33. Kc2 {[%clk 0:00:16]}  Rh8 {[%clk 0:01:48]} 34. Nf3 {[%clk 0:00:15]}  Bh6 {[%clk 0:01:42]} 35. Ng5 {[%clk 0:00:12]}  Bxg5 {[%clk 0:01:39]} 36. Rxg5 {[%clk 0:00:13]}  Rh3 {[%clk 0:01:38]} 37. Nd1 {[%clk 0:00:09]}  Kf6 {[%clk 0:01:34]} 38. Rg2 {[%clk 0:00:09]}  d5 {[%clk 0:01:34]} 39. Rf2+ {[%clk 0:00:09]}  Ke7 {[%clk 0:01:33]} 40. Kb3 {[%clk 0:00:06]}  d4 {[%clk 0:01:31]} 41. Kxa3 {[%clk 0:00:04]}  dxe3 {[%clk 0:01:31]} 42. Re2 {[%clk 0:00:04]}  Nb6 {[%clk 0:01:30]} 43. c5 {[%clk 0:00:03]}  Nc4+ {[%clk 0:01:29]} 44. Kb3 {[%clk 0:00:02]}  Nd2+ {[%clk 0:01:24]} 45. Kc2 {[%clk 0:00:02]}  Nf1 {[%clk 0:01:19]} 46. a4 {[%clk 0:00:01]}  f5 {[%clk 0:01:17]} 47. a5 {[%clk 0:00:01]}  f4 {[%clk 0:01:18]} 48. Bc6 {[%clk 0:00:01]}  Bc8 {[%clk 0:01:17]} 49. b5 {[%clk 0:00:01]}  f3 {[%clk 0:01:14]} 50. Bxf3 {[%clk 0:00:01]}  Rxf3 {[%clk 0:01:13]} 51. a6 {[%clk 0:00:02]}  Nd2 {[%clk 0:01:11]} 52. a7 {[%clk 0:00:02]}  Bb7 {[%clk 0:01:11]} 53. c6 {[%clk 0:00:03]}  Ba8 {[%clk 0:01:11]} 54. Nc3 {[%clk 0:00:03]}  Nc4 {[%clk 0:01:08]} 55. Nd5+ {[%clk 0:00:03]}  Kd6 {[%clk 0:01:08]} 56. Nb6 {[%clk 0:00:03]}  Bxc6 {[%clk 0:01:07]} 57. bxc6 {[%clk 0:00:03]}  Nxb6 {[%clk 0:01:07]} 58. Rd2+ {[%clk 0:00:02]}  Kxc6 {[%clk 0:01:07]} 59. Rd8 {[%clk 0:00:01]}  Rf2+ {[%clk 0:01:06]} 60. Kd3 {[%clk 0:00:01]}  e2 {[%clk 0:01:06]} 61. Kd2 {[%clk 0:00:02]}  e4 {[%clk 0:01:04]} 62. a8=Q+ {[%clk 0:00:02]}  Nxa8 {[%clk 0:01:04]} 63. Rxa8 {[%clk 0:00:03]}  Kd5 {[%clk 0:01:04]} 64. Rd8+ {[%clk 0:00:03]}  Ke5 {[%clk 0:01:04]} 65. Re8+ {[%clk 0:00:03]}  Kf4 {[%clk 0:01:04]} 66. Ke1 {[%clk 0:00:03]}  Rh2 {[%clk 0:01:04]} 67. Rf8+ {[%clk 0:00:03]}  Ke3 {[%clk 0:01:04]} 68. Rf3+ {[%clk 0:00:01]}  Kxf3 {[%clk 0:01:04]} 69. Kd2 {[%clk 0:00:00]}  e1=Q+ {[%clk 0:01:03]} 0-1


[Site "https://www.chess.com"]

[Event "Titled Tuesday Blitz May 9 Early 2023"]
[White "Michelle Catherina, P"]
[Black "Winkels, Marcel"]
[WhiteFideId "5005736"]
[BlackFideId "1003887"]
[WhiteElo "2049"]
[BlackElo "1900"]
[Result "1-0"]
[Round "09"]
[TimeControl "180+2"]
[Date "2023.05.09"]
[WhiteClock "0:00:31"]
[BlackClock "0:00:00"]

1. d4 {[%clk 0:01:42]}  Nf6 {[%clk 0:02:57]} 2. Nc3 {[%clk 0:01:38]}  d5 {[%clk 0:02:55]} 3. Bf4 {[%clk 0:01:38]}  c5 {[%clk 0:02:55]} 4. e3 {[%clk 0:01:37]}  cxd4 {[%clk 0:02:50]} 5. Nb5 {[%clk 0:01:35]}  Na6 {[%clk 0:02:49]} 6. exd4 {[%clk 0:01:35]}  e6 {[%clk 0:02:40]} 7. Nf3 {[%clk 0:01:33]}  Be7 {[%clk 0:02:34]} 8. c3 {[%clk 0:01:32]}  O-O {[%clk 0:02:35]} 9. Bd3 {[%clk 0:01:31]}  Bd7 {[%clk 0:02:31]} 10. a4 {[%clk 0:01:31]}  Bxb5 {[%clk 0:02:23]} 11. axb5 {[%clk 0:01:18]}  Nc7 {[%clk 0:02:23]} 12. O-O {[%clk 0:01:13]}  Qd7 {[%clk 0:02:16]} 13. Ne5 {[%clk 0:01:12]}  Qd8 {[%clk 0:02:12]} 14. Qe2 {[%clk 0:01:10]}  h6 {[%clk 0:02:10]} 15. Bc2 {[%clk 0:01:01]}  Bd6 {[%clk 0:02:04]} 16. Qd3 {[%clk 0:00:58]}  Qe8 {[%clk 0:00:52]} 17. Ng4 {[%clk 0:00:53]}  Ne4 {[%clk 0:00:47]} 18. Bxd6 {[%clk 0:00:52]}  f5 {[%clk 0:00:44]} 19. Bxc7 {[%clk 0:00:44]}  fxg4 {[%clk 0:00:43]} 20. f3 {[%clk 0:00:38]}  gxf3 {[%clk 0:00:37]} 21. gxf3 {[%clk 0:00:39]}  Qf7 {[%clk 0:00:18]} 22. Be5 {[%clk 0:00:32]}  Qg6+ {[%clk 0:00:00]} 23. Kh1 {[%clk 0:00:31]} 1-0


[Site "https://www.chess.com"]

[Event "Titled Tuesday Blitz May 9 Early 2023"]
[White "Fabris, Alberto"]
[Black "Hinds, Nathan"]
[WhiteFideId "801348"]
[BlackFideId "7400730"]
[WhiteElo "2171"]
[BlackElo "2001"]
[Result "1-0"]
[Round "09"]
[TimeControl "180+2"]
[Date "2023.05.09"]
[WhiteClock "0:00:22"]
[BlackClock "0:00:00"]

1. e4 {[%clk 0:03:00]}  c6 {[%clk 0:03:00]} 2. d4 {[%clk 0:03:00]}  d5 {[%clk 0:03:00]} 3. exd5 {[%clk 0:03:00]}  cxd5 {[%clk 0:03:00]} 4. Bd3 {[%clk 0:03:00]}  Nc6 {[%clk 0:03:00]} 5. c3 {[%clk 0:03:00]}  Qc7 {[%clk 0:03:01]} 6. Qb3 {[%clk 0:02:54]}  Nf6 {[%clk 0:03:00]} 7. h3 {[%clk 0:02:50]}  g6 {[%clk 0:02:43]} 8. Bg5 {[%clk 0:02:46]}  Bg7 {[%clk 0:02:42]} 9. Nf3 {[%clk 0:02:44]}  Bf5 {[%clk 0:02:08]} 10. Bxf5 {[%clk 0:02:40]}  gxf5 {[%clk 0:02:09]} 11. Bxf6 {[%clk 0:02:26]}  Bxf6 {[%clk 0:02:08]} 12. Qxd5 {[%clk 0:02:25]}  e6 {[%clk 0:02:05]} 13. Qb5 {[%clk 0:02:19]}  a6 {[%clk 0:02:03]} 14. Qa4 {[%clk 0:02:15]}  O-O {[%clk 0:01:51]} 15. Nbd2 {[%clk 0:02:13]}  b5 {[%clk 0:01:47]} 16. Qd1 {[%clk 0:02:11]}  b4 {[%clk 0:01:47]} 17. O-O {[%clk 0:02:05]}  bxc3 {[%clk 0:01:47]} 18. bxc3 {[%clk 0:02:05]}  Na5 {[%clk 0:01:42]} 19. Rc1 {[%clk 0:01:55]}  Rac8 {[%clk 0:01:33]} 20. Qa4 {[%clk 0:01:52]}  Nc4 {[%clk 0:01:29]} 21. Nxc4 {[%clk 0:01:51]}  Qxc4 {[%clk 0:01:30]} 22. Qxc4 {[%clk 0:01:50]}  Rxc4 {[%clk 0:01:31]} 23. Rc2 {[%clk 0:01:32]}  Rfc8 {[%clk 0:01:29]} 24. Rfc1 {[%clk 0:01:33]}  a5 {[%clk 0:01:25]} 25. Kf1 {[%clk 0:01:32]}  a4 {[%clk 0:01:24]} 26. Ke2 {[%clk 0:01:32]}  a3 {[%clk 0:01:22]} 27. Kd3 {[%clk 0:01:32]}  R4c7 {[%clk 0:01:13]} 28. Rb1 {[%clk 0:01:29]}  Rd7 {[%clk 0:00:58]} 29. Rb3 {[%clk 0:01:18]}  e5 {[%clk 0:00:58]} 30. Kd2 {[%clk 0:01:08]}  exd4 {[%clk 0:00:58]} 31. cxd4 {[%clk 0:01:07]}  Rxc2+ {[%clk 0:00:37]} 32. Kxc2 {[%clk 0:01:07]}  Ra7 {[%clk 0:00:30]} 33. Kd3 {[%clk 0:01:04]}  Kf8 {[%clk 0:00:29]} 34. Nd2 {[%clk 0:00:58]}  Rd7 {[%clk 0:00:26]} 35. Rb4 {[%clk 0:00:57]}  Bg5 {[%clk 0:00:22]} 36. Nb3 {[%clk 0:00:56]}  Re7 {[%clk 0:00:19]} 37. Ra4 {[%clk 0:00:50]}  Re1 {[%clk 0:00:18]} 38. Rxa3 {[%clk 0:00:49]}  Rf1 {[%clk 0:00:16]} 39. Ke2 {[%clk 0:00:48]}  Rb1 {[%clk 0:00:14]} 40. Nc5 {[%clk 0:00:43]}  Rb2+ {[%clk 0:00:13]} 41. Kf3 {[%clk 0:00:44]}  Bf6 {[%clk 0:00:12]} 42. Nb3 {[%clk 0:00:40]}  Rc2 {[%clk 0:00:11]} 43. Ra7 {[%clk 0:00:38]}  Rc3+ {[%clk 0:00:07]} 44. Ke2 {[%clk 0:00:35]}  Rc2+ {[%clk 0:00:07]} 45. Kf1 {[%clk 0:00:31]}  Bg5 {[%clk 0:00:03]} 46. a4 {[%clk 0:00:27]}  Be7 {[%clk 0:00:03]} 47. Rb7 {[%clk 0:00:25]}  Rb2 {[%clk 0:00:02]} 48. a5 {[%clk 0:00:24]}  Bd6 {[%clk 0:00:00]} 49. a6 {[%clk 0:00:22]} 1-0


[Site "https://www.chess.com"]

[Event "Titled Tuesday Blitz May 9 Early 2023"]
[White "Ismayilova, Khanim"]
[Black "Zampronha, Wladimir Camilo"]
[WhiteFideId "13429019"]
[BlackFideId "2103087"]
[WhiteElo "1633"]
[BlackElo "2176"]
[Result "0-1"]
[Round "09"]
[TimeControl "180+2"]
[Date "2023.05.09"]
[WhiteClock "0:00:35"]
[BlackClock "0:01:34"]

1. c4 {[%clk 0:03:00]}  Nf6 {[%clk 0:02:56]} 2. Nc3 {[%clk 0:03:01]}  e6 {[%clk 0:02:51]} 3. e4 {[%clk 0:03:00]}  c5 {[%clk 0:02:51]} 4. e5 {[%clk 0:02:59]}  Ng8 {[%clk 0:02:51]} 5. Nf3 {[%clk 0:02:58]}  Nc6 {[%clk 0:02:51]} 6. d4 {[%clk 0:02:58]}  cxd4 {[%clk 0:02:52]} 7. Nxd4 {[%clk 0:02:59]}  Nxe5 {[%clk 0:02:50]} 8. Ndb5 {[%clk 0:02:58]}  f6 {[%clk 0:02:45]} 9. Nd6+ {[%clk 0:02:56]}  Bxd6 {[%clk 0:02:44]} 10. Qxd6 {[%clk 0:02:57]}  Nf7 {[%clk 0:02:43]} 11. Qb4 {[%clk 0:02:47]}  Ne7 {[%clk 0:02:43]} 12. Bd3 {[%clk 0:02:44]}  O-O {[%clk 0:02:44]} 13. O-O {[%clk 0:02:40]}  Nc6 {[%clk 0:02:39]} 14. Qb3 {[%clk 0:02:38]}  Kh8 {[%clk 0:02:32]} 15. Be3 {[%clk 0:02:31]}  d6 {[%clk 0:02:28]} 16. a3 {[%clk 0:02:30]}  Nce5 {[%clk 0:02:21]} 17. Be4 {[%clk 0:02:26]}  a6 {[%clk 0:02:17]} 18. f4 {[%clk 0:02:11]}  Ng4 {[%clk 0:02:16]} 19. Bb6 {[%clk 0:02:09]}  Qd7 {[%clk 0:02:10]} 20. Na4 {[%clk 0:01:52]}  f5 {[%clk 0:02:06]} 21. Bf3 {[%clk 0:01:51]}  Nf6 {[%clk 0:02:06]} 22. Bd4 {[%clk 0:01:45]}  Qe7 {[%clk 0:02:05]} 23. Nb6 {[%clk 0:01:42]}  Rb8 {[%clk 0:02:05]} 24. Nxc8 {[%clk 0:01:39]}  Rbxc8 {[%clk 0:02:05]} 25. Qxb7 {[%clk 0:01:36]}  Qxb7 {[%clk 0:02:05]} 26. Bxb7 {[%clk 0:01:36]}  Rxc4 {[%clk 0:02:06]} 27. Bxf6 {[%clk 0:01:37]}  gxf6 {[%clk 0:02:06]} 28. Bxa6 {[%clk 0:01:36]}  Rc2 {[%clk 0:02:05]} 29. b4 {[%clk 0:01:34]}  Ra8 {[%clk 0:01:51]} 30. b5 {[%clk 0:01:31]}  d5 {[%clk 0:01:48]} 31. Rfc1 {[%clk 0:01:25]}  Rc4 {[%clk 0:01:43]} 32. Rxc4 {[%clk 0:01:22]}  dxc4 {[%clk 0:01:44]} 33. Rc1 {[%clk 0:01:22]}  Nd6 {[%clk 0:01:45]} 34. a4 {[%clk 0:01:15]}  Kg7 {[%clk 0:01:44]} 35. Rd1 {[%clk 0:01:10]}  Ne4 {[%clk 0:01:40]} 36. Rd4 {[%clk 0:00:56]}  c3 {[%clk 0:01:40]} 37. Bb7 {[%clk 0:00:41]}  c2 {[%clk 0:01:38]} 38. Rc4 {[%clk 0:00:39]}  Rxa4 {[%clk 0:01:35]} 39. Rxc2 {[%clk 0:00:37]}  Ra1+ {[%clk 0:01:35]} 40. Rc1 {[%clk 0:00:35]}  Rxc1# {[%clk 0:01:34]} 0-1


[Site "https://www.chess.com"]

[Event "Titled Tuesday Blitz May 9 Early 2023"]
[White "Kuchava, Ana"]
[Black "Flis, Pawel"]
[WhiteFideId "13605348"]
[BlackFideId "1112864"]
[WhiteElo "2001"]
[BlackElo "1822"]
[Result "1-0"]
[Round "09"]
[TimeControl "180+2"]
[Date "2023.05.09"]
[WhiteClock "0:01:03"]
[BlackClock "0:00:17"]

1. d4 {[%clk 0:03:00]}  Nf6 {[%clk 0:01:43]} 2. Nf3 {[%clk 0:02:58]}  c5 {[%clk 0:01:43]} 3. d5 {[%clk 0:02:58]}  g6 {[%clk 0:01:42]} 4. c4 {[%clk 0:02:55]}  b5 {[%clk 0:01:41]} 5. cxb5 {[%clk 0:02:54]}  a6 {[%clk 0:01:42]} 6. b6 {[%clk 0:02:54]}  Qxb6 {[%clk 0:01:41]} 7. Nc3 {[%clk 0:02:53]}  Bg7 {[%clk 0:01:40]} 8. e4 {[%clk 0:02:51]}  d6 {[%clk 0:01:41]} 9. Be2 {[%clk 0:02:50]}  O-O {[%clk 0:01:40]} 10. O-O {[%clk 0:02:49]}  Bg4 {[%clk 0:01:40]} 11. Nd2 {[%clk 0:02:41]}  Bxe2 {[%clk 0:01:40]} 12. Qxe2 {[%clk 0:02:42]}  Nbd7 {[%clk 0:01:36]} 13. Nc4 {[%clk 0:02:40]}  Qb4 {[%clk 0:01:35]} 14. Bd2 {[%clk 0:02:19]}  Nb6 {[%clk 0:01:34]} 15. Nxb6 {[%clk 0:02:10]}  Qxb6 {[%clk 0:01:34]} 16. Rab1 {[%clk 0:02:10]}  Nd7 {[%clk 0:01:31]} 17. b3 {[%clk 0:02:07]}  a5 {[%clk 0:01:24]} 18. a4 {[%clk 0:02:01]}  Qa6 {[%clk 0:01:19]} 19. Nb5 {[%clk 0:02:00]}  c4 {[%clk 0:01:13]} 20. Nc7 {[%clk 0:01:54]}  Qc8 {[%clk 0:01:12]} 21. Nxa8 {[%clk 0:01:53]}  Qxa8 {[%clk 0:01:13]} 22. Qxc4 {[%clk 0:01:53]}  Nc5 {[%clk 0:01:11]} 23. Be3 {[%clk 0:01:37]}  Rc8 {[%clk 0:01:10]} 24. Rfc1 {[%clk 0:01:37]}  Qb7 {[%clk 0:01:01]} 25. Qb5 {[%clk 0:01:32]}  Qa8 {[%clk 0:00:51]} 26. Bxc5 {[%clk 0:01:30]}  dxc5 {[%clk 0:00:50]} 27. Rxc5 {[%clk 0:01:30]}  Rxc5 {[%clk 0:00:50]} 28. Qxc5 {[%clk 0:01:31]}  h5 {[%clk 0:00:47]} 29. Rc1 {[%clk 0:01:28]}  Kh7 {[%clk 0:00:44]} 30. Qxe7 {[%clk 0:01:28]}  Qa6 {[%clk 0:00:43]} 31. d6 {[%clk 0:01:19]}  Qd3 {[%clk 0:00:40]} 32. d7 {[%clk 0:01:16]}  Qd2 {[%clk 0:00:40]} 33. Rf1 {[%clk 0:01:15]}  Bd4 {[%clk 0:00:31]} 34. Qxf7+ {[%clk 0:01:09]}  Kh6 {[%clk 0:00:31]} 35. Qf8+ {[%clk 0:01:06]}  Kh7 {[%clk 0:00:28]} 36. d8=Q {[%clk 0:01:06]}  Bxf2+ {[%clk 0:00:23]} 37. Rxf2 {[%clk 0:01:02]}  Qe1+ {[%clk 0:00:22]} 38. Rf1 {[%clk 0:01:02]}  Qe3+ {[%clk 0:00:17]} 39. Kh1 {[%clk 0:01:03]} 1-0


[Site "https://www.chess.com"]

[Event "Titled Tuesday Blitz May 9 Early 2023"]
[White "Quirke, Jeffrey"]
[Black "Lwanga, Aguda"]
[WhiteFideId "2013029"]
[BlackFideId "10801529"]
[WhiteElo "2206"]
[BlackElo "1475"]
[Result "1-0"]
[Round "09"]
[TimeControl "180+2"]
[Date "2023.05.09"]
[WhiteClock "0:00:20"]
[BlackClock "0:00:00"]

1. e4 {[%clk 0:03:00]}  e5 {[%clk 0:02:52]} 2. Nf3 {[%clk 0:02:59]}  Nc6 {[%clk 0:02:48]} 3. Bb5 {[%clk 0:02:57]}  d6 {[%clk 0:02:46]} 4. d4 {[%clk 0:02:41]}  Bd7 {[%clk 0:02:44]} 5. d5 {[%clk 0:02:32]}  Nce7 {[%clk 0:02:41]} 6. Bxd7+ {[%clk 0:02:31]}  Qxd7 {[%clk 0:02:36]} 7. c4 {[%clk 0:02:32]}  Ng6 {[%clk 0:02:30]} 8. Nc3 {[%clk 0:02:24]}  Nf6 {[%clk 0:02:28]} 9. O-O {[%clk 0:02:21]}  Be7 {[%clk 0:02:25]} 10. Re1 {[%clk 0:01:46]}  O-O {[%clk 0:02:19]} 11. h3 {[%clk 0:01:39]}  Ne8 {[%clk 0:02:09]} 12. Bd2 {[%clk 0:01:35]}  f5 {[%clk 0:02:03]} 13. exf5 {[%clk 0:01:35]}  Qxf5 {[%clk 0:02:01]} 14. Ne4 {[%clk 0:01:33]}  Nf4 {[%clk 0:01:53]} 15. Bxf4 {[%clk 0:01:29]}  Qxf4 {[%clk 0:01:49]} 16. Qe2 {[%clk 0:01:22]}  Nf6 {[%clk 0:01:33]} 17. Nfd2 {[%clk 0:01:17]}  Nxe4 {[%clk 0:01:25]} 18. Nxe4 {[%clk 0:01:15]}  Rf7 {[%clk 0:01:17]} 19. b4 {[%clk 0:01:11]}  Raf8 {[%clk 0:01:15]} 20. c5 {[%clk 0:01:00]}  h6 {[%clk 0:00:53]} 21. Rad1 {[%clk 0:00:52]}  Rf5 {[%clk 0:00:28]} 22. Qb5 {[%clk 0:00:28]}  dxc5 {[%clk 0:00:15]} 23. bxc5 {[%clk 0:00:26]}  b6 {[%clk 0:00:13]} 24. d6 {[%clk 0:00:23]}  cxd6 {[%clk 0:00:09]} 25. cxd6 {[%clk 0:00:23]}  Bd8 {[%clk 0:00:00]} 26. Qd5+ {[%clk 0:00:20]} 1-0


[Site "https://www.chess.com"]